[Event "*** Titled Tuesday Blitz"]
[Site "Chess.com"]
[Date "2021.03.09"]
[Round "5"]
[White "AlphaZ3r0"]
[Black "canary2016"]
[Result "1-0"]
[WhiteElo "2257"]
[BlackElo "2047"]
[TimeControl "180+1"]
[EndTime "10:59:43 PST"]
[Termination "AlphaZ3r0 won by checkmate"]

1. Nf3 {[%clk 0:02:12.1]} 1... d5 {[%clk 0:02:59.3]} 2. c4 {[%clk 0:02:12.9]}
2... c6 {[%clk 0:02:59.2]} 3. g3 {[%clk 0:02:11.8]} 3... Nf6 {[%clk 0:02:56.7]}
4. Bg2 {[%clk 0:02:10.2]} 4... Bg4 {[%clk 0:02:53.1]} 5. O-O {[%clk 0:02:11.1]}
5... Nbd7 {[%clk 0:02:52.7]} 6. cxd5 {[%clk 0:02:10.3]} 6... cxd5 {[%clk
0:02:52.5]} 7. h3 {[%clk 0:02:10.8]} 7... Bh5 {[%clk 0:02:51.5]} 8. Nc3 {[%clk
0:02:10.5]} 8... e6 {[%clk 0:02:51.1]} 9. d3 {[%clk 0:02:05.3]} 9... Be7 {[%clk
0:02:47.5]} 10. Bf4 {[%clk 0:02:04.5]} 10... O-O {[%clk 0:02:46.7]} 11. Qb3
{[%clk 0:02:01.6]} 11... Qb6 {[%clk 0:02:43.8]} 12. Rfc1 {[%clk 0:01:59.6]}
12... Rac8 {[%clk 0:02:42.2]} 13. Ne5 {[%clk 0:01:36.4]} 13... Rfd8 {[%clk
0:02:28.6]} 14. Qxb6 {[%clk 0:00:54.7]} 14... Nxb6 {[%clk 0:02:28]} 15. e4
{[%clk 0:00:47.8]} 15... dxe4 {[%clk 0:02:16.8]} 16. dxe4 {[%clk 0:00:48.7]}
16... Bd6 {[%clk 0:02:16]} 17. g4 {[%clk 0:00:42.4]} 17... Bg6 {[%clk
0:02:13.7]} 18. Nxg6 {[%clk 0:00:41.7]} 18... hxg6 {[%clk 0:02:12.8]} 19. e5
{[%clk 0:00:41.8]} 19... Bb8 {[%clk 0:01:45.6]} 20. Bxb7 {[%clk 0:00:30.9]}
20... Rc7 {[%clk 0:01:43.5]} 21. exf6 {[%clk 0:00:27]} 21... Rxb7 {[%clk
0:01:43.1]} 22. Bxb8 {[%clk 0:00:27.9]} 22... Rdxb8 {[%clk 0:01:40.6]} 23. fxg7
{[%clk 0:00:28.8]} 23... Kxg7 {[%clk 0:01:40.5]} 24. Ne4 {[%clk 0:00:29.2]}
24... Nd5 {[%clk 0:01:37.8]} 25. b3 {[%clk 0:00:27.7]} 25... a5 {[%clk
0:01:32.1]} 26. Rc4 {[%clk 0:00:26.7]} 26... Nb4 {[%clk 0:01:29.2]} 27. g5
{[%clk 0:00:16.8]} 27... Nd3 {[%clk 0:01:24.6]} 28. Kg2 {[%clk 0:00:15.9]} 28...
Ne5 {[%clk 0:01:20.5]} 29. Rc5 {[%clk 0:00:15.1]} 29... Nd3 {[%clk 0:01:18.2]}
30. Rxa5 {[%clk 0:00:14.6]} 30... Rb4 {[%clk 0:01:11.9]} 31. Kf3 {[%clk
0:00:13.3]} 31... Rd8 {[%clk 0:01:05.9]} 32. Rd1 {[%clk 0:00:13.6]} 32... Rxe4
{[%clk 0:00:49.8]} 33. Kxe4 {[%clk 0:00:12]} 33... Nxf2+ {[%clk 0:00:49.4]} 34.
Kf3 {[%clk 0:00:12.9]} 34... Nxd1 {[%clk 0:00:49.2]} 35. b4 {[%clk 0:00:13.4]}
35... Nc3 {[%clk 0:00:47.5]} 36. b5 {[%clk 0:00:12.2]} 36... Rd5 {[%clk
0:00:46.6]} 37. a4 {[%clk 0:00:12.7]} 37... Rxg5 {[%clk 0:00:42.1]} 38. b6
{[%clk 0:00:13]} 38... Rg1 {[%clk 0:00:21.2]} 39. Ra7 {[%clk 0:00:13]} 39... Rb1
{[%clk 0:00:19.1]} 40. a5 {[%clk 0:00:13.5]} 40... Nd5 {[%clk 0:00:18.3]} 41. b7
{[%clk 0:00:13.8]} 41... Nf6 {[%clk 0:00:16.3]} 42. a6 {[%clk 0:00:14.2]} 42...
Nd7 {[%clk 0:00:16.1]} 43. Ra8 {[%clk 0:00:14.7]} 43... Rb6 {[%clk 0:00:14.6]}
44. Rd8 {[%clk 0:00:15]} 44... Ne5+ {[%clk 0:00:05.1]} 45. Ke4 {[%clk
0:00:14.6]} 45... Nc6 {[%clk 0:00:05.8]} 46. Rd6 {[%clk 0:00:13.3]} 46... Rxa6
{[%clk 0:00:04.4]} 47. Rxc6 {[%clk 0:00:13.5]} 47... Rxc6 {[%clk 0:00:04.4]} 48.
b8=Q {[%clk 0:00:14]} 48... Rc4+ {[%clk 0:00:05.3]} 49. Kd3 {[%clk 0:00:13.9]}
49... Rc6 {[%clk 0:00:04.7]} 50. Qe5+ {[%clk 0:00:14.3]} 50... Kg8 {[%clk
0:00:03.9]} 51. Ke4 {[%clk 0:00:14.7]} 51... Rc4+ {[%clk 0:00:02.6]} 52. Kf3
{[%clk 0:00:15.4]} 52... Rc2 {[%clk 0:00:02.4]} 53. h4 {[%clk 0:00:15.4]} 53...
Rc1 {[%clk 0:00:02.5]} 54. Qb8+ {[%clk 0:00:15.2]} 54... Kg7 {[%clk 0:00:02.3]}
55. Qb2+ {[%clk 0:00:14.9]} 55... Kh7 {[%clk 0:00:03.2]} 56. Qxc1 {[%clk
0:00:15.2]} 56... Kg7 {[%clk 0:00:03.3]} 57. Qc3+ {[%clk 0:00:13.9]} 57... Kg8
{[%clk 0:00:02.9]} 58. Qc7 {[%clk 0:00:14.8]} 58... Kg7 {[%clk 0:00:03.2]} 59.
Kg4 {[%clk 0:00:15.7]} 59... e5 {[%clk 0:00:03.1]} 60. Kg5 {[%clk 0:00:16.6]}
60... Kf8 {[%clk 0:00:02.6]} 61. Qxe5 {[%clk 0:00:17.1]} 61... Kg8 {[%clk
0:00:03.5]} 62. Kf6 {[%clk 0:00:16.3]} 62... Kh7 {[%clk 0:00:03.9]} 63. Qe8
{[%clk 0:00:15.5]} 63... Kh6 {[%clk 0:00:04.8]} 64. Qh8# {[%clk 0:00:15.7]} 1-0

[Event "*** Titled Tuesday Blitz"]
[Site "Chess.com"]
[Date "2021.03.09"]
[Round "5"]
[White "Witik"]
[Black "Fandorine"]
[Result "1/2-1/2"]
[WhiteElo "2623"]
[BlackElo "2883"]
[TimeControl "180+1"]
[EndTime "10:59:44 PST"]
[Termination "Game drawn by agreement"]

1. d4 {[%clk 0:02:53.8]} 1... Nf6 {[%clk 0:02:59.7]} 2. Bf4 {[%clk 0:02:53.5]}
2... c6 {[%clk 0:02:59.3]} 3. Nd2 {[%clk 0:02:42.6]} 3... d6 {[%clk 0:02:53.6]}
4. Ngf3 {[%clk 0:02:38.1]} 4... g6 {[%clk 0:02:53.6]} 5. h3 {[%clk 0:02:32.6]}
5... Bg7 {[%clk 0:02:53.8]} 6. e3 {[%clk 0:02:32.6]} 6... O-O {[%clk 0:02:53.4]}
7. Be2 {[%clk 0:02:32]} 7... b6 {[%clk 0:02:53.4]} 8. O-O {[%clk 0:02:31.4]}
8... Bb7 {[%clk 0:02:53.4]} 9. Re1 {[%clk 0:02:29.3]} 9... c5 {[%clk 0:02:53.3]}
10. c3 {[%clk 0:02:25.4]} 10... Nbd7 {[%clk 0:02:39.8]} 11. Bh2 {[%clk 0:02:25]}
11... Ne4 {[%clk 0:02:37]} 12. Nxe4 {[%clk 0:02:21.5]} 12... Bxe4 {[%clk
0:02:37.9]} 13. Bd3 {[%clk 0:02:21.8]} 13... Bb7 {[%clk 0:02:28.8]} 14. Qe2
{[%clk 0:02:15.9]} 14... Qc7 {[%clk 0:02:27.6]} 15. Rad1 {[%clk 0:02:14.4]}
15... Rac8 {[%clk 0:02:27.1]} 16. e4 {[%clk 0:02:04.7]} 16... Qb8 {[%clk
0:02:26.4]} 17. d5 {[%clk 0:02:00.8]} 17... Qa8 {[%clk 0:02:14.7]} 18. c4 {[%clk
0:01:57.6]} 18... Ne5 {[%clk 0:01:57.1]} 19. Nxe5 {[%clk 0:01:53.4]} 19... dxe5
{[%clk 0:01:57.5]} 20. f4 {[%clk 0:01:47.2]} 20... exf4 {[%clk 0:01:56]} 21.
Bxf4 {[%clk 0:01:47]} 21... e6 {[%clk 0:01:50.4]} 22. Kh1 {[%clk 0:01:25.7]}
22... Rcd8 {[%clk 0:01:49.1]} 23. Qf3 {[%clk 0:01:02.1]} 23... Qc8 {[%clk
0:01:47.3]} 24. b3 {[%clk 0:00:55.4]} 24... Qd7 {[%clk 0:01:43.5]} 25. Bc2
{[%clk 0:00:53.6]} 25... e5 {[%clk 0:01:40.1]} 26. Bd2 {[%clk 0:00:46.8]} 26...
Qd6 {[%clk 0:01:31.8]} 27. Rf1 {[%clk 0:00:44]} 27... a5 {[%clk 0:01:29.8]} 28.
g4 {[%clk 0:00:41.8]} 28... Bc8 {[%clk 0:01:29.7]} 29. Kg2 {[%clk 0:00:40.7]}
29... Bd7 {[%clk 0:01:27.2]} 30. a4 {[%clk 0:00:35.4]} 30... Qe7 {[%clk
0:01:17.3]} 31. Qg3 {[%clk 0:00:32.9]} 31... h6 {[%clk 0:01:01.2]} 32. Rf2
{[%clk 0:00:31.8]} 32... Bc8 {[%clk 0:01:01.4]} 33. Rdf1 {[%clk 0:00:30]} 33...
Rd6 {[%clk 0:00:46.2]} 34. h4 {[%clk 0:00:29.6]} 34... f6 {[%clk 0:00:41.7]} 35.
Bd3 {[%clk 0:00:21.5]} 35... g5 {[%clk 0:00:38.8]} 36. h5 {[%clk 0:00:19.5]}
36... Qe8 {[%clk 0:00:33.6]} 37. Be2 {[%clk 0:00:18.2]} 37... Rd8 {[%clk
0:00:32.7]} 38. Qd3 {[%clk 0:00:18.2]} 38... Bd7 {[%clk 0:00:29.7]} 39. Bf3
{[%clk 0:00:17.9]} 39... Qe7 {[%clk 0:00:29.2]} 40. Kh2 {[%clk 0:00:17.6]} 40...
Qd6 {[%clk 0:00:28.1]} 41. Rg2 {[%clk 0:00:17.4]} 41... Kf7 {[%clk 0:00:25.4]}
42. Kg1 {[%clk 0:00:16.1]} 42... Ke7 {[%clk 0:00:25.9]} 43. Qe2 {[%clk
0:00:16.1]} 43... Rde8 {[%clk 0:00:25.3]} 44. Qd1 {[%clk 0:00:16.5]} 44... Kd8
{[%clk 0:00:25.7]} 45. Be2 {[%clk 0:00:16.6]} 45... Kc7 {[%clk 0:00:25.9]} 46.
Bd3 {[%clk 0:00:17]} 46... Kb7 {[%clk 0:00:26.3]} 47. Be2 {[%clk 0:00:17]} 47...
Rf7 {[%clk 0:00:26]} 48. Bd3 {[%clk 0:00:16.9]} 48... Ref8 {[%clk 0:00:25.6]}
49. Be3 {[%clk 0:00:16.9]} 49... Re7 {[%clk 0:00:26]} 50. Bd2 {[%clk 0:00:17.2]}
50... Ree8 {[%clk 0:00:23.1]} 51. Be3 {[%clk 0:00:15.6]} 51... Qc7 {[%clk
0:00:14.8]} 52. Bc2 {[%clk 0:00:14.7]} 52... Qd6 {[%clk 0:00:14.4]} 53. Bd3
{[%clk 0:00:14.9]} 53... Rf7 {[%clk 0:00:15]} 54. Bc2 {[%clk 0:00:15]} 54... Bf8
{[%clk 0:00:15.5]} 55. Bd3 {[%clk 0:00:15.4]} 55... Be7 {[%clk 0:00:15.9]} 56.
Bc2 {[%clk 0:00:15.8]} 56... Ref8 {[%clk 0:00:15.6]} 57. Bd3 {[%clk 0:00:16]}
57... Bd8 {[%clk 0:00:15.3]} 58. Bc2 {[%clk 0:00:16.2]} 58... Bc7 {[%clk
0:00:15.7]} 59. Bd3 {[%clk 0:00:16.6]} 59... Kb8 {[%clk 0:00:16.2]} 60. Bc2
{[%clk 0:00:16.9]} 60... Qe7 {[%clk 0:00:16.3]} 61. Bd3 {[%clk 0:00:17.4]} 61...
Bd6 {[%clk 0:00:16.8]} 62. Bc2 {[%clk 0:00:17.7]} 62... Qe8 {[%clk 0:00:14.2]}
63. Bd3 {[%clk 0:00:17.6]} 1/2-1/2

[Event "*** Titled Tuesday Blitz"]
[Site "Chess.com"]
[Date "2021.03.09"]
[Round "5"]
[White "FlySooHigh"]
[Black "redblizzard"]
[Result "0-1"]
[WhiteElo "2668"]
[BlackElo "2472"]
[TimeControl "180+1"]
[EndTime "10:59:45 PST"]
[Termination "redblizzard won by resignation"]

1. e4 {[%clk 0:03:00.9]} 1... e5 {[%clk 0:02:56]} 2. Nf3 {[%clk 0:03:00.4]} 2...
Nc6 {[%clk 0:02:52.7]} 3. Bc4 {[%clk 0:03:00]} 3... Nf6 {[%clk 0:02:53]} 4. d3
{[%clk 0:03:00]} 4... Be7 {[%clk 0:02:52.8]} 5. O-O {[%clk 0:02:59.6]} 5... O-O
{[%clk 0:02:51.6]} 6. c3 {[%clk 0:02:59.5]} 6... d6 {[%clk 0:02:37.7]} 7. Bb3
{[%clk 0:02:59]} 7... h6 {[%clk 0:02:34.2]} 8. Nbd2 {[%clk 0:02:58.8]} 8... Nh7
{[%clk 0:02:34.4]} 9. Nc4 {[%clk 0:02:56.4]} 9... Ng5 {[%clk 0:02:33.4]} 10. Ne3
{[%clk 0:02:54.7]} 10... Nxf3+ {[%clk 0:02:22.6]} 11. Qxf3 {[%clk 0:02:55.6]}
11... Bg5 {[%clk 0:02:22.4]} 12. Bd2 {[%clk 0:02:21.8]} 12... Be6 {[%clk
0:01:55.4]} 13. Rad1 {[%clk 0:02:06.9]} 13... Bxb3 {[%clk 0:01:48]} 14. axb3
{[%clk 0:02:07.8]} 14... a5 {[%clk 0:01:48.2]} 15. g3 {[%clk 0:02:02.9]} 15...
Ne7 {[%clk 0:01:33.1]} 16. h4 {[%clk 0:01:49.1]} 16... Bxe3 {[%clk 0:01:31.2]}
17. Bxe3 {[%clk 0:01:38.5]} 17... b6 {[%clk 0:01:09.8]} 18. d4 {[%clk
0:01:37.5]} 18... Qc8 {[%clk 0:01:07.7]} 19. dxe5 {[%clk 0:01:18]} 19... dxe5
{[%clk 0:01:07.2]} 20. Rd3 {[%clk 0:01:17.8]} 20... Qe6 {[%clk 0:01:02.3]} 21.
Qh5 {[%clk 0:01:08.1]} 21... Nc6 {[%clk 0:00:53.4]} 22. Rd5 {[%clk 0:01:02]}
22... f5 {[%clk 0:00:45.2]} 23. Rfd1 {[%clk 0:00:36.7]} 23... f4 {[%clk
0:00:45.2]} 24. Bc1 {[%clk 0:00:36.6]} 24... fxg3 {[%clk 0:00:36.9]} 25. fxg3
{[%clk 0:00:36.4]} 25... Qh3 {[%clk 0:00:36.5]} 26. R5d3 {[%clk 0:00:24.1]}
26... Rf7 {[%clk 0:00:35.4]} 27. Qe2 {[%clk 0:00:18.5]} 27... Raf8 {[%clk
0:00:32.9]} 28. Qg2 {[%clk 0:00:18.8]} 28... Qg4 {[%clk 0:00:28]} 29. Re1 {[%clk
0:00:16.8]} 29... Ne7 {[%clk 0:00:19.8]} 30. Bd2 {[%clk 0:00:11.9]} 30... Ng6
{[%clk 0:00:16.3]} 31. b4 {[%clk 0:00:10]} 31... axb4 {[%clk 0:00:11.3]} 32.
cxb4 {[%clk 0:00:10.9]} 32... Rf3 {[%clk 0:00:11.2]} 33. Ree3 {[%clk 0:00:09]}
33... Rf1+ {[%clk 0:00:09.4]} 34. Qxf1 {[%clk 0:00:09.3]} 34... Rxf1+ {[%clk
0:00:10.1]} 35. Kxf1 {[%clk 0:00:10.2]} 35... Qh3+ {[%clk 0:00:08.7]} 36. Kg1
{[%clk 0:00:10.3]} 36... Kh7 {[%clk 0:00:08.6]} 37. Rc3 {[%clk 0:00:10.1]} 37...
Qd7 {[%clk 0:00:05.6]} 38. Be1 {[%clk 0:00:10.1]} 38... Nf8 {[%clk 0:00:05]} 39.
Rcd3 {[%clk 0:00:09.5]} 39... Qe7 {[%clk 0:00:04.5]} 40. Kg2 {[%clk 0:00:09]}
40... Ne6 {[%clk 0:00:05]} 41. Bc3 {[%clk 0:00:07.5]} 41... c5 {[%clk
0:00:03.3]} 42. bxc5 {[%clk 0:00:07.1]} 42... Nxc5 {[%clk 0:00:04.2]} 43. Rd5
{[%clk 0:00:06.5]} 43... Qb7 {[%clk 0:00:04.3]} 44. Rxe5 {[%clk 0:00:06.3]}
44... Qc6 {[%clk 0:00:03.8]} 45. Re7 {[%clk 0:00:05.9]} 45... Ne6 {[%clk
0:00:03.6]} 46. Re2 {[%clk 0:00:04.8]} 46... Kg6 {[%clk 0:00:04]} 47. Rf2 {[%clk
0:00:03.7]} 47... Qxe4+ {[%clk 0:00:01.1]} 48. Kh2 {[%clk 0:00:04.3]} 48... Kh5
{[%clk 0:00:01.5]} 49. Ref7 {[%clk 0:00:04.1]} 49... g5 {[%clk 0:00:01.5]} 50.
hxg5 {[%clk 0:00:03.6]} 50... hxg5 {[%clk 0:00:02.4]} 51. Rf8 {[%clk 0:00:03.7]}
51... Kg4 {[%clk 0:00:02.8]} 52. Rg8 {[%clk 0:00:02.3]} 52... Qh7+ {[%clk
0:00:03]} 53. Kg1 {[%clk 0:00:02.2]} 53... Qxg8 {[%clk 0:00:03.9]} 54. Re2
{[%clk 0:00:02.7]} 54... Qg6 {[%clk 0:00:04.4]} 55. Kf2 {[%clk 0:00:03.1]} 55...
Qf5+ {[%clk 0:00:04.4]} 56. Kg2 {[%clk 0:00:03.6]} 56... Qf3+ {[%clk 0:00:05]}
57. Kg1 {[%clk 0:00:04.2]} 57... Qxe2 {[%clk 0:00:05.1]} 0-1

[Event "*** Titled Tuesday Blitz"]
[Site "Chess.com"]
[Date "2021.03.09"]
[Round "5"]
[White "Eliwood44"]
[Black "elcandado"]
[Result "1/2-1/2"]
[WhiteElo "2481"]
[BlackElo "2664"]
[TimeControl "180+1"]
[EndTime "10:59:49 PST"]
[Termination "Game drawn by repetition"]

1. d4 {[%clk 0:03:00.9]} 1... Nf6 {[%clk 0:02:59.2]} 2. Nf3 {[%clk 0:03:00.7]}
2... d5 {[%clk 0:02:58.5]} 3. Bf4 {[%clk 0:02:59.5]} 3... e6 {[%clk 0:02:57.6]}
4. Nbd2 {[%clk 0:02:58.8]} 4... Bd6 {[%clk 0:02:56.8]} 5. e3 {[%clk 0:02:56.9]}
5... O-O {[%clk 0:02:55.2]} 6. Bd3 {[%clk 0:02:56.2]} 6... Qe7 {[%clk 0:02:54]}
7. Ne5 {[%clk 0:02:40.7]} 7... Nc6 {[%clk 0:02:53]} 8. c3 {[%clk 0:02:36.7]}
8... Nd7 {[%clk 0:02:51]} 9. Qh5 {[%clk 0:02:26.8]} 9... g6 {[%clk 0:02:39.2]}
10. Nxc6 {[%clk 0:02:16.4]} 10... bxc6 {[%clk 0:02:35.9]} 11. Bxd6 {[%clk
0:01:53.3]} 11... cxd6 {[%clk 0:02:28.8]} 12. Qh6 {[%clk 0:01:52.8]} 12... f5
{[%clk 0:01:57.9]} 13. h4 {[%clk 0:01:47.7]} 13... Qg7 {[%clk 0:01:56.6]} 14.
Qg5 {[%clk 0:01:44.2]} 14... Qf6 {[%clk 0:01:53.1]} 15. Nf3 {[%clk 0:01:38.5]}
15... e5 {[%clk 0:01:42.4]} 16. Be2 {[%clk 0:01:22.3]} 16... Rb8 {[%clk
0:01:14.2]} 17. O-O-O {[%clk 0:01:12.8]} 17... e4 {[%clk 0:01:01.5]} 18. Nd2
{[%clk 0:00:58.4]} 18... f4 {[%clk 0:00:52.8]} 19. Bg4 {[%clk 0:00:42.4]} 19...
Nb6 {[%clk 0:00:48.2]} 20. Bxc8 {[%clk 0:00:36.1]} 20... Rbxc8 {[%clk
0:00:49.1]} 21. Qxf6 {[%clk 0:00:22.3]} 21... Rxf6 {[%clk 0:00:48.1]} 22. g3
{[%clk 0:00:23.2]} 22... fxe3 {[%clk 0:00:43.5]} 23. fxe3 {[%clk 0:00:24.1]}
23... Nc4 {[%clk 0:00:32.7]} 24. Nxc4 {[%clk 0:00:19.4]} 24... dxc4 {[%clk
0:00:33.6]} 25. Rdf1 {[%clk 0:00:19.8]} 25... Rcf8 {[%clk 0:00:32.8]} 26. Rf4
{[%clk 0:00:17.5]} 26... d5 {[%clk 0:00:26.1]} 27. Rhf1 {[%clk 0:00:17.3]} 27...
Kg7 {[%clk 0:00:24.6]} 28. b3 {[%clk 0:00:14.9]} 28... cxb3 {[%clk 0:00:19.9]}
29. axb3 {[%clk 0:00:15.8]} 29... h6 {[%clk 0:00:19.4]} 30. Kd2 {[%clk
0:00:14.8]} 30... g5 {[%clk 0:00:18.7]} 31. hxg5 {[%clk 0:00:14.6]} 31... hxg5
{[%clk 0:00:19.4]} 32. Rxf6 {[%clk 0:00:14.7]} 32... Rxf6 {[%clk 0:00:20]} 33.
Ra1 {[%clk 0:00:13.7]} 33... Rf2+ {[%clk 0:00:17.5]} 34. Ke1 {[%clk 0:00:13.7]}
34... Rc2 {[%clk 0:00:15.2]} 35. Rxa7+ {[%clk 0:00:12.8]} 35... Kf6 {[%clk
0:00:14.9]} 36. c4 {[%clk 0:00:12.8]} 36... dxc4 {[%clk 0:00:14.1]} 37. bxc4
{[%clk 0:00:13.7]} 37... Rxc4 {[%clk 0:00:14.1]} 38. Kd2 {[%clk 0:00:12.8]}
38... Kf5 {[%clk 0:00:13.9]} 39. Re7 {[%clk 0:00:11.1]} 39... Kg4 {[%clk
0:00:12.9]} 40. Rxe4+ {[%clk 0:00:10.9]} 40... Kxg3 {[%clk 0:00:13.4]} 41. Re8
{[%clk 0:00:10.7]} 41... g4 {[%clk 0:00:13.3]} 42. Rg8 {[%clk 0:00:10.6]} 42...
Kf3 {[%clk 0:00:12.9]} 43. Kd3 {[%clk 0:00:10.3]} 43... Rc1 {[%clk 0:00:12]} 44.
Rf8+ {[%clk 0:00:10.6]} 44... Kg2 {[%clk 0:00:11.3]} 45. Ke4 {[%clk 0:00:10.5]}
45... g3 {[%clk 0:00:11.3]} 46. Rg8 {[%clk 0:00:10.3]} 46... Kf2 {[%clk
0:00:09.9]} 47. Rf8+ {[%clk 0:00:10]} 47... Kg1 {[%clk 0:00:09.9]} 48. Rg8
{[%clk 0:00:10.3]} 48... g2 {[%clk 0:00:10.1]} 49. d5 {[%clk 0:00:10.5]} 49...
cxd5+ {[%clk 0:00:09.6]} 50. Kxd5 {[%clk 0:00:11.4]} 50... Kf2 {[%clk
0:00:06.2]} 51. e4 {[%clk 0:00:09.6]} 51... g1=Q {[%clk 0:00:05.6]} 52. Rxg1
{[%clk 0:00:09.8]} 52... Rxg1 {[%clk 0:00:05.2]} 53. e5 {[%clk 0:00:10.7]} 53...
Kf3 {[%clk 0:00:05]} 54. e6 {[%clk 0:00:10.6]} 54... Kf4 {[%clk 0:00:04.5]} 55.
e7 {[%clk 0:00:10.7]} 55... Re1 {[%clk 0:00:03]} 56. Kd6 {[%clk 0:00:10.9]}
56... Kf5 {[%clk 0:00:03.2]} 57. Kd7 {[%clk 0:00:11.4]} 57... Rd1+ {[%clk
0:00:03.4]} 58. Kc8 {[%clk 0:00:10.9]} 58... Re1 {[%clk 0:00:03.5]} 59. Kd8
{[%clk 0:00:10.8]} 59... Rd1+ {[%clk 0:00:03.3]} 60. Kc8 {[%clk 0:00:11]} 60...
Re1 {[%clk 0:00:02.8]} 61. Kd8 {[%clk 0:00:11.3]} 61... Rd1+ {[%clk 0:00:02.7]}
62. Kc8 {[%clk 0:00:11.5]} 1/2-1/2

[Event "*** Titled Tuesday Blitz"]
[Site "Chess.com"]
[Date "2021.03.09"]
[Round "5"]
[White "PetrolulSah"]
[Black "SARGISMV"]
[Result "1-0"]
[WhiteElo "2212"]
[BlackElo "2461"]
[TimeControl "180+1"]
[EndTime "10:59:50 PST"]
[Termination "PetrolulSah won by checkmate"]

1. d4 {[%clk 0:02:54.2]} 1... Nf6 {[%clk 0:02:58.1]} 2. c4 {[%clk 0:02:50.8]}
2... c5 {[%clk 0:02:58.4]} 3. Nf3 {[%clk 0:02:49.6]} 3... cxd4 {[%clk
0:02:58.2]} 4. Nxd4 {[%clk 0:02:49]} 4... e5 {[%clk 0:02:55.5]} 5. Nb5 {[%clk
0:02:44.6]} 5... d5 {[%clk 0:02:54.4]} 6. cxd5 {[%clk 0:02:43]} 6... Bc5 {[%clk
0:02:51.4]} 7. g3 {[%clk 0:02:39.6]} 7... Qb6 {[%clk 0:02:46.7]} 8. e3 {[%clk
0:02:36.1]} 8... O-O {[%clk 0:02:42.3]} 9. N5c3 {[%clk 0:02:30.8]} 9... e4
{[%clk 0:02:40.3]} 10. Bg2 {[%clk 0:02:24.4]} 10... Re8 {[%clk 0:02:29.2]} 11.
O-O {[%clk 0:02:22.3]} 11... Nbd7 {[%clk 0:02:23.3]} 12. Qc2 {[%clk 0:02:12.8]}
12... Qb4 {[%clk 0:01:42.9]} 13. Nd2 {[%clk 0:02:02.3]} 13... Ne5 {[%clk
0:01:24.8]} 14. Ncxe4 {[%clk 0:01:44.9]} 14... Nxe4 {[%clk 0:01:17.9]} 15. Nxe4
{[%clk 0:01:43.2]} 15... Bb6 {[%clk 0:01:13]} 16. Bd2 {[%clk 0:01:35.8]} 16...
Qb5 {[%clk 0:01:04.6]} 17. a4 {[%clk 0:01:21.4]} 17... Qe2 {[%clk 0:01:02.1]}
18. Ng5 {[%clk 0:01:01.8]} 18... g6 {[%clk 0:00:50.6]} 19. Rfe1 {[%clk
0:00:32.3]} 19... Qh5 {[%clk 0:00:50]} 20. f4 {[%clk 0:00:27.8]} 20... Ng4
{[%clk 0:00:38]} 21. h3 {[%clk 0:00:27.7]} 21... Bxe3+ {[%clk 0:00:26.8]} 22.
Bxe3 {[%clk 0:00:21.3]} 22... Nxe3 {[%clk 0:00:26.3]} 23. Qc3 {[%clk 0:00:16.1]}
23... h6 {[%clk 0:00:15.5]} 24. Rxe3 {[%clk 0:00:12.2]} 24... Rxe3 {[%clk
0:00:14.4]} 25. Qxe3 {[%clk 0:00:11.6]} 25... hxg5 {[%clk 0:00:15.1]} 26. Qe8+
{[%clk 0:00:11.7]} 26... Kg7 {[%clk 0:00:13.5]} 27. Rc1 {[%clk 0:00:10.6]} 27...
gxf4 {[%clk 0:00:12.3]} 28. g4 {[%clk 0:00:10.5]} 28... Qg5 {[%clk 0:00:11.3]}
29. Rxc8 {[%clk 0:00:09.6]} 29... Rxc8 {[%clk 0:00:10.5]} 30. Qxc8 {[%clk
0:00:10.5]} 30... Qe5 {[%clk 0:00:10]} 31. Qc3 {[%clk 0:00:10.4]} 31... Kf6
{[%clk 0:00:09.5]} 32. Kf2 {[%clk 0:00:08.2]} 32... b6 {[%clk 0:00:09.3]} 33.
Kf3 {[%clk 0:00:07.8]} 33... g5 {[%clk 0:00:09.6]} 34. Qxe5+ {[%clk 0:00:04.4]}
34... Kxe5 {[%clk 0:00:09.8]} 35. Ke2 {[%clk 0:00:04.7]} 35... a5 {[%clk
0:00:09.3]} 36. Kd3 {[%clk 0:00:04.4]} 36... f6 {[%clk 0:00:08.6]} 37. Kc4
{[%clk 0:00:04.3]} 37... Kd6 {[%clk 0:00:07.1]} 38. Kb5 {[%clk 0:00:04.2]} 38...
Kc7 {[%clk 0:00:07.5]} 39. d6+ {[%clk 0:00:04.4]} 39... Kxd6 {[%clk 0:00:08]}
40. Kxb6 {[%clk 0:00:04.6]} 40... Ke5 {[%clk 0:00:08.7]} 41. Kxa5 {[%clk
0:00:04.7]} 41... f5 {[%clk 0:00:09.6]} 42. Kb4 {[%clk 0:00:04.5]} 42... fxg4
{[%clk 0:00:10.1]} 43. hxg4 {[%clk 0:00:05]} 43... Kd4 {[%clk 0:00:11]} 44. a5
{[%clk 0:00:04.9]} 44... Ke3 {[%clk 0:00:11.9]} 45. a6 {[%clk 0:00:05.1]} 45...
f3 {[%clk 0:00:12.8]} 46. Bxf3 {[%clk 0:00:05]} 46... Kxf3 {[%clk 0:00:13.7]}
47. a7 {[%clk 0:00:05.1]} 47... Kxg4 {[%clk 0:00:14.6]} 48. a8=Q {[%clk
0:00:05.1]} 48... Kf4 {[%clk 0:00:15.2]} 49. Qf8+ {[%clk 0:00:05]} 49... Kg4
{[%clk 0:00:15.5]} 50. Qg7 {[%clk 0:00:05.1]} 50... Kf5 {[%clk 0:00:15.6]} 51.
Qf7+ {[%clk 0:00:05.2]} 51... Ke4 {[%clk 0:00:15.6]} 52. Qg6+ {[%clk 0:00:05.2]}
52... Kf4 {[%clk 0:00:16.1]} 53. Qf6+ {[%clk 0:00:05.3]} 53... Kg4 {[%clk
0:00:14.8]} 54. Qf2 {[%clk 0:00:04.7]} 54... Kh3 {[%clk 0:00:14.7]} 55. Kc4
{[%clk 0:00:04.8]} 55... g4 {[%clk 0:00:15.2]} 56. Qg1 {[%clk 0:00:05.1]} 56...
g3 {[%clk 0:00:15.7]} 57. Kd4 {[%clk 0:00:05.4]} 57... Kg4 {[%clk 0:00:16.1]}
58. Ke4 {[%clk 0:00:05.6]} 58... Kh4 {[%clk 0:00:15.6]} 59. Kf4 {[%clk
0:00:05.5]} 59... Kh3 {[%clk 0:00:15.7]} 60. Kf3 {[%clk 0:00:05.7]} 60... Kh4
{[%clk 0:00:14.9]} 61. Qxg3+ {[%clk 0:00:05.6]} 61... Kh5 {[%clk 0:00:15.1]} 62.
Qg7 {[%clk 0:00:05.5]} 62... Kh4 {[%clk 0:00:15.2]} 63. Qh6# {[%clk 0:00:05.5]}
1-0